fUSD/lending_fUSD_20260426
["ID","MTS","AMOUNT","RATE_DAILY","PERIOD"]
[421145197,1777161110896,-400.0,0.00035,120]
[421145198,1777161110906,-12419.41993592,0.00035,2]
[421145199,1777161110916,-151.0,0.00035,14]
[421145200,1777161110926,-1301.0,0.00035,120]
[421145201,1777161110936,-23732.02986984,0.00035,120]
[421145202,1777161110946,-800.0,0.00035,2]
[421145203,1777161110956,-165.05,0.00035,5]
[421145204,1777161110967,-1003.83544583,0.00035,120]
[421145205,1777161110976,-2000.0,0.00035,120]
[421145206,1777161110987,-1000.0,0.00035,120]
[421145207,1777161110998,-638.46219636,0.00035,120]
[421145208,1777161111008,-504.01027495,0.00035068,120]
[421145209,1777161111019,-150.0,0.00035077,120]
[421145210,1777161111029,-370.36851852,0.00035142,7]
[421145211,1777161111040,-500.0,0.00035151,120]
[421145212,1777161111050,-528.0,0.00035178,30]
[421145213,1777161111061,-151.0,0.0003538,120]
[421145214,1777161111071,-1375.5775,0.000354,30]
[421145215,1777161111081,-1655.413,0.000354,60]
[421145216,1777161111092,-1655.413,0.000354,120]
[421145217,1777161111102,-1489.873,0.000354,60]
[421145218,1777161111112,-1489.873,0.000354,30]
[421145219,1777161111123,-1489.87,0.000354,30]
[421145220,1777161111135,-1199.9014,0.000354,60]
[421145221,1777161111145,-1031.9839,0.000354,30]
[421145222,1777161111155,-1031.9839,0.000354,60]
[421145223,1777161111166,-694.5778,0.000354,120]
[421145224,1777161111176,-679.215,0.000354,60]
[421145225,1777161111186,-1734.9091,0.000354,120]
[421145226,1777161111196,-629.34,0.000354,114]
[421145227,1777161111207,-176.14,0.00035404,30]
[421145228,1777161111217,-500.0,0.00035412,120]
[421145229,1777161111232,-150.0,0.00035441,120]
[421145230,1777161111243,-150.0,0.00035443,2]
[421145231,1777161111252,-420747.8053,0.00035444,7]
[421145232,1777161111262,-280.0,0.00035469,38]
[421145233,1777161111272,-150.0,0.00035523,120]
[421145234,1777161111282,-169929.88049267,0.0003561,2]
[421145235,1777161111292,-4487.01181571,0.0003561,2]
[421145236,1777161111302,-196.97037044,0.00035616,120]
[421145237,1777161111312,-2000.0,0.00035616,120]
[421145238,1777161111322,-2000.0,0.00035616,120]
[421145239,1777161111333,-2000.0,0.00035616,120]
[421145240,1777161111342,-2000.0,0.00035616,120]
[421145241,1777161111352,-2000.0,0.00035616,120]
[421145242,1777161111363,-2000.0,0.00035616,120]
[421145243,1777161111372,-2000.0,0.00035616,120]
[421145244,1777161111382,-3062.27628039,0.00035616,7]
[421145245,1777161111392,-3062.27628039,0.00035616,7]
[421145246,1777161111403,-3062.27628039,0.00035616,7]
[421145247,1777161111412,-3062.27628039,0.00035616,7]
[421145248,1777161111422,-3062.27628039,0.00035616,7]
[421145249,1777161111433,-3062.27628039,0.00035616,7]
[421145250,1777161111443,-3062.27628039,0.00035616,7]
[421145251,1777161111453,-3062.27628039,0.00035616,7]
[421145252,1777161111463,-3062.27628039,0.00035616,7]
[421145253,1777161111473,-3062.27628039,0.00035616,7]
[421145254,1777161111483,-3062.27628039,0.00035616,7]
[421145255,1777161111494,-3062.27628039,0.00035616,7]
[421145256,1777161111504,-3062.27628039,0.00035616,7]
[421145257,1777161111514,-3062.27628039,0.00035616,7]
[421145258,1777161111525,-3062.27628039,0.00035616,7]
[421145259,1777161111535,-3062.27628039,0.00035616,7]
[421145260,1777161111544,-3062.27628039,0.00035616,7]
[421145261,1777161111554,-3062.27628039,0.00035616,7]
[421145262,1777161111564,-3062.27628039,0.00035616,7]
[421145263,1777161111574,-3062.27628039,0.00035616,7]
[421145264,1777161111584,-3062.27628039,0.00035616,7]
[421145265,1777161111594,-3062.27628039,0.00035616,7]
[421145266,1777161111604,-3062.27628039,0.00035616,7]
[421145267,1777161111614,-3062.27628039,0.00035616,7]
[421145268,1777161111629,-3062.27628039,0.00035616,7]
[421145269,1777161111640,-3062.27628039,0.00035616,7]
[421145270,1777161111650,-3062.27628039,0.00035616,7]
[421145271,1777161111661,-3062.27628039,0.00035616,7]
[421145272,1777161111672,-3062.27628039,0.00035616,7]
[421145273,1777161111681,-3062.27628039,0.00035616,7]
[421145274,1777161111691,-3062.27628039,0.00035616,7]
[421145275,1777161111702,-3062.27628039,0.00035616,7]
[421145276,1777161111713,-3062.27628039,0.00035616,7]
[421145277,1777161111723,-3062.27628039,0.00035616,7]
[421145278,1777161111734,-3062.27628039,0.00035616,7]
[421145279,1777161111744,-3062.27628039,0.00035616,7]
[421145280,1777161111754,-3062.27628039,0.00035616,7]
[421145281,1777161111764,-3062.27628039,0.00035616,7]
[421145282,1777161111774,-3062.27628039,0.00035616,7]
[421145283,1777161111785,-3062.27628039,0.00035616,7]
[421145284,1777161111795,-3062.27628039,0.00035616,7]
[421145285,1777161111806,-3062.27628039,0.00035616,7]
[421145286,1777161111816,-3062.27628039,0.00035616,7]
[421145287,1777161111827,-3062.27628039,0.00035616,7]
[421145288,1777161111836,-3062.27628039,0.00035616,7]
[421145289,1777161111847,-3062.27628039,0.00035616,7]
[421145290,1777161111857,-3062.27628039,0.00035616,7]
[421145291,1777161111866,-3062.27628039,0.00035616,7]
[421145292,1777161111877,-3062.27628039,0.00035616,7]
[421145293,1777161111887,-3062.27628039,0.00035616,7]
[421145294,1777161111896,-3062.27628039,0.00035616,7]
[421145295,1777161111906,-3062.27628039,0.00035616,7]
[421145296,1777161111916,-3062.27628039,0.00035616,7]
[421145297,1777161111926,-3062.27628039,0.00035616,7]
[421145298,1777161111936,-3062.27628039,0.00035616,7]
[421145299,1777161111946,-3062.27628039,0.00035616,7]
[421145300,1777161111956,-3062.27628039,0.00035616,7]
[421145301,1777161111965,-3062.27628039,0.00035616,7]
[421145302,1777161111975,-3062.27628039,0.00035616,7]
[421145303,1777161111985,-3062.27628039,0.00035616,7]
[421145304,1777161111995,-3062.27628039,0.00035616,7]
[421145305,1777161112006,-3062.27628039,0.00035616,7]
[421145306,1777161112021,-3062.27628039,0.00035616,7]
[421145307,1777161112031,-3062.27628039,0.00035616,7]
[421145308,1777161112041,-3062.27628039,0.00035616,7]
[421145309,1777161112051,-3062.27628039,0.00035616,7]
[421145310,1777161112062,-3062.27628039,0.00035616,7]
[421145311,1777161112072,-3062.27628039,0.00035616,7]
[421145312,1777161112083,-3062.27628039,0.00035616,7]
[421145313,1777161112093,-3051.33957938,0.00035616,7]
[421145314,1777161112103,-3051.33957938,0.00035616,7]
[421145315,1777161112113,-3051.33957938,0.00035616,7]
[421145316,1777161112125,-3051.33957938,0.00035616,7]
[421145317,1777161112136,-3051.33957938,0.00035616,7]
[421145318,1777161112147,-3051.33957938,0.00035616,7]
[421145319,1777161112159,-3051.33957938,0.00035616,7]
[421145320,1777161112169,-3051.33957938,0.00035616,7]
[421145321,1777161112180,-3051.33957938,0.00035616,7]
[421145322,1777161112191,-3051.33957938,0.00035616,7]
[421145323,1777161112201,-3051.33957938,0.00035616,7]
[421145324,1777161112212,-3051.33957938,0.00035616,7]
[421145325,1777161112222,-3051.33957938,0.00035616,7]
[421145326,1777161112233,-3051.33957938,0.00035616,7]
[421145327,1777161112243,-3051.33957938,0.00035616,7]
[421145328,1777161112253,-3164.3521564,0.00035616,7]
[421145329,1777161112263,-3051.33957938,0.00035616,7]
[421145330,1777161112273,-3051.33957938,0.00035616,7]
[421145331,1777161112284,-3051.33957938,0.00035616,7]
[421145332,1777161112295,-3051.33957938,0.00035616,7]
[421145333,1777161112305,-3051.33957938,0.00035616,7]
[421145334,1777161112315,-3051.33957938,0.00035616,7]
[421145335,1777161112326,-3051.33957938,0.00035616,7]
[421145336,1777161112336,-3051.33957938,0.00035616,7]
[421145337,1777161112346,-3051.33957938,0.00035616,7]
[421145338,1777161112357,-3051.33957938,0.00035616,7]
[421145339,1777161112367,-3051.33957938,0.00035616,7]
[421145340,1777161112378,-3051.33957938,0.00035616,7]
[421145341,1777161112389,-3164.3521564,0.00035616,7]
[421145342,1777161112399,-3164.3521564,0.00035616,7]
[421145343,1777161112410,-3051.33957938,0.00035616,7]
[421145344,1777161112420,-608.888756,0.00035616,7]
[421145345,1777161112430,-608.888756,0.00035616,7]
[421145346,1777161112440,-608.888756,0.00035616,7]
[421145347,1777161112451,-608.888756,0.00035616,7]
[421145348,1777161112461,-608.888756,0.00035616,7]
[421145349,1777161112471,-608.888756,0.00035616,7]
[421145350,1777161112481,-608.888756,0.00035616,7]
[421145351,1777161112491,-608.888756,0.00035616,7]
[421145352,1777161112501,-608.888756,0.00035616,7]
[421145353,1777161112511,-608.888756,0.00035616,7]
[421145354,1777161112522,-608.888756,0.00035616,7]
[421145355,1777161112531,-608.888756,0.00035616,7]
[421145356,1777161112541,-608.888756,0.00035616,7]
[421145357,1777161112552,-608.888756,0.00035616,7]
[421145358,1777161112562,-608.888756,0.00035616,7]
[421145359,1777161112573,-608.888756,0.00035616,7]
[421145360,1777161112583,-608.888756,0.00035616,7]
[421145361,1777161112593,-608.888756,0.00035616,7]
[421145362,1777161112602,-608.888756,0.00035616,7]
[421145363,1777161112612,-608.888754,0.00035616,7]
[421145364,1777161112623,-291.91,0.0003562,30]
[421145365,1777161112633,-150.0,0.00035642,120]
[421145366,1777161112643,-500.0,0.00035726,120]
[421145367,1777161112654,-933.38,0.000358,120]
[421145368,1777161112664,-1777.2497,0.000358,120]
[421145369,1777161112674,-677.0,0.00035811,30]
[421145370,1777161112684,-1002.0,0.00035811,30]
[421145371,1777161112694,-1080.0,0.00035811,30]
[421145372,1777161112705,-298.0,0.00035811,30]
[421145373,1777161112714,-232.0,0.00035811,30]
[421145374,1777161112724,-1244.0,0.00035811,30]
[421145375,1777161112734,-552.0,0.00035811,30]
[421145376,1777161112745,-459.0,0.00035811,30]
[421145377,1777161112759,-3860.0,0.00035811,30]
[421145378,1777161112769,-531.0,0.00035815,30]
[421145379,1777161112780,-190.0,0.00035815,30]
[421145380,1777161112790,-150.0,0.0003585,30]
[421145381,1777161112800,-167.2,0.000359,120]
[421145382,1777161112810,-160.21720642,0.00035926,120]
[421145383,1777161112820,-2000.0,0.00035938,120]
[421145384,1777161112830,-500.0,0.00036,120]
[421145385,1777161112841,-1151.79294498,0.00036,2]
[421145386,1777161112851,-659.78229096,0.00036,120]
[421145387,1777161112861,-5092.95970305,0.00036,90]
[421145388,1777161112871,-433.16293675,0.00036113,96]
[421145389,1777161112881,-200.0,0.00036148,2]
[421145390,1777161112891,-505.0,0.00036151,21]
[421145391,1777161112901,-370.36851852,0.00036238,7]
[421145392,1777161112911,-500.0,0.00036301,120]
[421145393,1777161112921,-629.34,0.0003631,120]
[421145394,1777161112931,-617.27833333,0.00036384,30]
[421145395,1777161112941,-484.43,0.00036421,90]
[421145396,1777161112951,-150.0,0.0003643,2]
[421145397,1777161112961,-150.0,0.00036443,2]
[421145398,1777161112971,-151.5,0.00036488,120]
[421145399,1777161112981,-1151.198675,0.000365,120]
[421145400,1777161112991,-500.0,0.00036614,2]
[421145401,1777161113001,-500.0,0.00036614,2]
[421145402,1777161113011,-500.0,0.00036614,2]
[421145403,1777161113021,-500.0,0.00036614,2]
[421145404,1777161113032,-192.81145359,0.00036614,2]
[421145405,1777161113042,-297.29218951,0.00036658,2]
[421145406,1777161113051,-342.411253,0.00036677,120]
[421145407,1777161113062,-2394.5241,0.000367,120]
[421145408,1777161113073,-622.3391,0.000367,120]
[421145409,1777161113082,-1489.41,0.000367,120]
[421145410,1777161113093,-1489.41,0.000367,120]
[421145411,1777161113103,-597.11,0.000367,120]
[421145412,1777161113114,-624.57,0.000367,120]
[421145413,1777161113126,-624.57,0.000367,60]
[421145414,1777161113136,-280.12567512,0.00036719,97]
[421145415,1777161113146,-278.70030602,0.00036724,97]
[421145416,1777161113155,-2000.0,0.00036726,120]
[421145417,1777161113166,-1830.37,0.00036726,120]
[421145418,1777161113176,-2000.0,0.00036726,120]
[421145419,1777161113186,-2044.79,0.00036726,120]
[421145420,1777161113196,-2000.0,0.00036726,120]
[421145421,1777161113205,-2000.0,0.00036726,120]
[421145422,1777161113215,-2000.0,0.00036726,120]
[421145423,1777161113226,-2000.0,0.00036726,120]
[421145424,1777161113236,-2000.0,0.00036726,120]
[421145425,1777161113246,-2000.0,0.00036726,120]
[421145426,1777161113258,-2000.0,0.00036726,120]
[421145427,1777161113268,-2000.0,0.00036726,120]
[421145428,1777161113279,-2000.0,0.00036726,120]
[421145429,1777161113288,-2000.0,0.00036726,120]
[421145430,1777161113298,-2000.0,0.00036726,120]
[421145431,1777161113309,-2000.0,0.00036726,120]
[421145432,1777161113319,-2000.0,0.00036726,120]
[421145433,1777161113330,-2000.0,0.00036726,120]
[421145434,1777161113340,-2000.0,0.00036726,120]
[421145435,1777161113350,-277.12391721,0.00036728,101]
[421145436,1777161113360,-1630.26546046,0.000368,2]
[421145437,1777161113371,-677.0,0.00036811,30]
[421145438,1777161113382,-1002.0,0.00036811,30]
[421145439,1777161113392,-1080.0,0.00036811,30]
[421145440,1777161113402,-298.0,0.00036811,30]
[421145441,1777161113413,-232.0,0.00036811,30]
[421145442,1777161113423,-1244.0,0.00036811,30]
[421145443,1777161113432,-552.0,0.00036811,30]
[421145444,1777161113442,-459.0,0.00036811,30]
[421145445,1777161113451,-3860.0,0.00036811,30]
[421145446,1777161113461,-531.0,0.00036815,30]
[421145447,1777161113470,-190.0,0.00036815,30]
[421145448,1777161113480,-500.0,0.00036877,120]
[421145449,1777161113490,-208.0,0.0003689,30]
[421145450,1777161113499,-167.2,0.000369,120]
[421145451,1777161113509,-539.0,0.00036937,30]
[421145452,1777161113519,-528.0,0.00036937,30]
[421145453,1777161113528,-213.63704638,0.00036955,101]
[421145454,1777161113538,-2000.0,0.00037,120]
[421145455,1777161113547,-365.0,0.00037,2]
[421145456,1777161113558,-167.68846147,0.00037,2]
[421145457,1777161113568,-1002.9407076,0.00037,2]
[421145458,1777161113578,-150.0,0.00037,120]
[421145459,1777161113587,-4500.0,0.00037,2]
[421145460,1777161113597,-850.0,0.00037,2]
[421145461,1777161113607,-150.0,0.00037042,120]
[421145462,1777161113617,-181089.74551387,0.000371,2]
[421145463,1777161113627,-629.34,0.0003721,45]
[421145464,1777161113637,-370.36851852,0.00037334,7]
[421145465,1777161113647,-500.0,0.000374,120]
[421145466,1777161113656,-505.0,0.00037404,22]
[421145467,1777161113667,-1095.309647,0.00037438,120]
[421145468,1777161113676,-150.0,0.00037443,2]
[421145469,1777161113686,-538356.2272,0.00037444,7]
[421145470,1777161113695,-500.0,0.00037452,120]
[421145471,1777161113706,-213.89192375,0.00037453,120]
[421145472,1777161113716,-213.44974071,0.00037453,120]
[421145473,1777161113725,-160.21720642,0.00037471,120]
[421145474,1777161113735,-280.0,0.0003752,45]
[421145475,1777161113745,-2000.0,0.00037589,120]
[421145476,1777161113755,-4389.11671131,0.0003759,2]
[421145477,1777161113764,-205.96,0.00037611,30]
[421145478,1777161113774,-500.0,0.00037612,30]
[421145479,1777161113784,-186.54,0.00037612,30]
[421145480,1777161113794,-500.0,0.00037615,30]
[421145481,1777161113804,-500.0,0.00037615,30]
[421145482,1777161113814,-500.0,0.00037615,30]
[421145483,1777161113824,-500.0,0.00037615,30]
[421145484,1777161113834,-370.43,0.000377,120]
[421145485,1777161113844,-2000.0,0.00037746,120]
[421145486,1777161113854,-150.0,0.000378,30]
[421145487,1777161113865,-199.26,0.00037808,60]
[421145488,1777161113874,-677.0,0.00037811,30]
[421145489,1777161113884,-1002.0,0.00037811,30]
[421145490,1777161113893,-1080.0,0.00037811,30]
[421145491,1777161113903,-298.0,0.00037811,30]
[421145492,1777161113912,-232.0,0.00037811,30]
[421145493,1777161113922,-1244.0,0.00037811,30]
[421145494,1777161113932,-552.0,0.00037811,30]
[421145495,1777161113943,-459.0,0.00037811,30]
[421145496,1777161113952,-3860.0,0.00037811,30]
[421145497,1777161113962,-531.0,0.00037815,30]
[421145498,1777161113972,-190.0,0.00037815,30]
[421145499,1777161113982,-211.21955619,0.00037819,120]
[421145500,1777161113992,-204.71842506,0.0003788,2]
[421145501,1777161114002,-500.0,0.0003789,120]
[421145502,1777161114012,-167.2,0.000379,120]
[421145503,1777161114021,-367.8466,0.000379,120]
[421145504,1777161114032,-333.44,0.000379,120]
[421145505,1777161114042,-188.74102675,0.000379,60]
[421145506,1777161114051,-2248.5252,0.000379,120]
[421145507,1777161114061,-332.885,0.000379,120]
[421145508,1777161114071,-170.379637,0.00037964,23]
[421145509,1777161114080,-176.289999,0.00038,2]
[421145510,1777161114090,-2000.0,0.00038,120]
[421145511,1777161114100,-500.0,0.00038,120]
[421145512,1777161114110,-5044.0,0.00038,120]
[421145513,1777161114120,-539.0,0.00038027,2]
[421145514,1777161114130,-11151.3181302,0.0003807,30]
[421145515,1777161114139,-279.12937411,0.000381,33]
[421145516,1777161114149,-301.27810989,0.000381,33]
[421145517,1777161114159,-629.34,0.0003812,87]
[421145518,1777161114170,-352.29,0.00038144,30]
[421145519,1777161114180,-150.0,0.00038252,2]
[421145520,1777161114191,-1098.13328185,0.00038329,120]
[421145521,1777161114201,-763.10647494,0.00038329,120]
[421145522,1777161114211,-863.0958277,0.00038329,120]
[421145523,1777161114222,-381.87,0.00038356,30]
[421145524,1777161114232,-381.87,0.00038356,120]
[421145525,1777161114242,-462.26148379,0.00038356,7]
[421145526,1777161114252,-151.0,0.00038356,30]
[421145527,1777161114262,-151.0,0.00038356,30]
[421145528,1777161114272,-151.0,0.00038356,30]
[421145529,1777161114282,-151.0,0.00038356,30]
[421145530,1777161114292,-151.0,0.00038356,30]
[421145531,1777161114302,-245.214612,0.00038356,30]
[421145532,1777161114312,-1890.45,0.00038356,120]
[421145533,1777161114322,-3309.76,0.00038356,120]
[421145534,1777161114332,-6320.05,0.00038356,120]
[421145535,1777161114342,-518.19,0.00038356,120]
[421145536,1777161114352,-150.0,0.00038356,5]
[421145537,1777161114362,-250.0,0.00038359,5]
[421145538,1777161114622,-350.0,0.00038362,5]
[421145539,1777161114682,-450.0,0.00038364,5]
[421145540,1777161114692,-550.0,0.00038367,5]
[421145541,1777161114702,-650.0,0.0003837,5]
[421145542,1777161114712,-688.49818693,0.00038373,5]
[421145543,1777161114721,-163.11,0.00038383,120]
[421145544,1777161114731,-150.42984125,0.00038384,120]
[421145545,1777161114741,-173.92841366,0.00038384,120]
[421145546,1777161114750,-157.29380821,0.00038384,120]
[421145547,1777161114760,-173.26057352,0.00038384,120]
[421145548,1777161114770,-173.26057351,0.00038384,120]
[421145549,1777161114781,-290.40661129,0.00038384,120]
[421145550,1777161114791,-178.70231603,0.00038384,120]
[421145551,1777161114800,-160.93291203,0.00038384,120]
[421145552,1777161114810,-187.14239629,0.00038384,120]
[421145553,1777161114821,-187.14239626,0.00038384,120]
[421145554,1777161114831,-167.64212275,0.00038384,120]
[421145555,1777161114841,-4602.73052107,0.00038384,120]
[421145556,1777161114851,-9999.95,0.00038384,120]
[421145557,1777161114862,-3333.31666667,0.00038384,120]
[421145558,1777161114872,-166.66583333,0.00038384,120]
[421145559,1777161114882,-1978.42,0.00038398,120]
[421145560,1777161114891,-3754.9,0.00038398,120]
[421145561,1777161114901,-522.54,0.00038398,120]
[421145562,1777161114911,-23877.61,0.00038398,120]
[421145563,1777161114920,-575.3,0.00038398,120]
[421145564,1777161114930,-337.95,0.000384,120]
[421145565,1777161114940,-528.0,0.00038414,90]
[421145566,1777161114950,-370.36851852,0.0003843,7]
[421145567,1777161114960,-1300.3964,0.000385,120]
[421145568,1777161114970,-500.0,0.0003855,75]
[421145569,1777161114980,-500.0,0.0003855,75]
[421145570,1777161114990,-500.0,0.0003855,75]
[421145571,1777161115000,-2000.0,0.000386,2]
[421145572,1777161115010,-378.6254,0.000386,60]
[421145573,1777161115020,-162.25,0.00038631,120]
[421145574,1777161115030,-505.0,0.00038657,23]
[421145575,1777161115039,-150.42984125,0.00038658,120]
[421145576,1777161115050,-290.40661129,0.00038658,120]
[421145577,1777161115060,-178.70231603,0.00038658,120]
[421145578,1777161115070,-160.93291203,0.00038658,120]
[421145579,1777161115079,-187.14239629,0.00038658,120]
[421145580,1777161115090,-4602.73052107,0.00038658,120]
[421145581,1777161115100,-9999.95,0.00038658,120]
[421145582,1777161115110,-3333.31666667,0.00038658,120]
[421145583,1777161115120,-166.66583333,0.00038658,120]
[421145584,1777161115130,-528.0,0.00038696,90]
[421145585,1777161115140,-500.0,0.000387,120]
[421145586,1777161115150,-500.0,0.000387,120]
[421145587,1777161115161,-500.0,0.000387,120]
[421145588,1777161115173,-500.0,0.000387,120]
[421145589,1777161115185,-500.0,0.000387,120]
[421145590,1777161115196,-500.0,0.000387,120]
[421145591,1777161115207,-500.0,0.000387,120]
[421145592,1777161115217,-500.0,0.000387,120]
[421145593,1777161115227,-500.0,0.000387,120]
[421145594,1777161115237,-500.0,0.000387,120]
[421145595,1777161115247,-500.0,0.000387,120]
[421145596,1777161115257,-500.0,0.000387,120]
[421145597,1777161115266,-500.0,0.000387,120]
[421145598,1777161115276,-500.0,0.000387,120]
[421145599,1777161115286,-500.0,0.000387,120]
[421145600,1777161115295,-500.0,0.000387,120]
[421145601,1777161115305,-500.0,0.000387,120]
[421145602,1777161115315,-500.0,0.000387,120]
[421145603,1777161115324,-500.0,0.000387,120]
[421145604,1777161115334,-500.0,0.000387,120]
[421145605,1777161115344,-6606.6304,0.0003878,2]
[421145606,1777161115354,-6753.56674488,0.00038834,2]
[421145607,1777161115364,-238.62274909,0.00038865,60]
[421145608,1777161115374,-7099.06278752,0.0003888,60]
[421145609,1777161115384,-356303.7433848,0.00038888,30]
[421145610,1777161115394,-167.2,0.000389,120]
[421145611,1777161115403,-208.0,0.0003891,30]
[421145612,1777161115413,-6606.6304,0.00038919,2]
[421145613,1777161115424,-150.42984125,0.00038932,120]
[421145614,1777161115434,-157.29380821,0.00038932,120]
[421145615,1777161115444,-290.40661129,0.00038932,120]
[421145616,1777161115455,-178.70231603,0.00038932,120]
[421145617,1777161115465,-160.93291203,0.00038932,120]
[421145618,1777161115475,-187.14239629,0.00038932,120]
[421145619,1777161115484,-4602.73052107,0.00038932,120]
[421145620,1777161115495,-9999.95,0.00038932,120]
[421145621,1777161115505,-3333.31666667,0.00038932,120]
[421145622,1777161115515,-166.66583333,0.00038932,120]
[421145623,1777161115525,-1621.67116334,0.00039,120]
[421145624,1777161115535,-151.13,0.00039,5]
[421145625,1777161115544,-545.51260223,0.00039,120]
[421145626,1777161115554,-507.30698229,0.00039,120]
[421145627,1777161115564,-500.0,0.00039,120]
[421145628,1777161115574,-10006.72473003,0.00039,20]
[421145629,1777161115584,-31148.49135027,0.00039,2]
[421145630,1777161115594,-900.0,0.00039,2]
[421145631,1777161115604,-629.34,0.0003902,112]
[421145632,1777161115614,-461.47242444,0.0003904,106]
[421145633,1777161115623,-280.0,0.00039044,56]
[421145634,1777161115633,-6606.6304,0.00039057,2]
[421145635,1777161115643,-25349.34,0.00039173,4]
[421145636,1777161115652,-11509.15,0.00039173,4]
[421145637,1777161115662,-27849.06,0.00039173,4]
[421145638,1777161115672,-332037.78,0.00039173,4]
[421145639,1777161115682,-6606.6304,0.00039196,2]
[421145640,1777161115692,-696.395,0.000392,120]
[421145641,1777161115702,-150.42984125,0.00039206,120]
[421145642,1777161115711,-173.92841366,0.00039206,120]
[421145643,1777161115721,-290.40661129,0.00039206,120]
[421145644,1777161115731,-178.70231603,0.00039206,120]
[421145645,1777161115741,-160.93291203,0.00039206,120]
[421145646,1777161115751,-187.14239629,0.00039206,120]
[421145647,1777161115761,-4602.73052107,0.00039206,120]
[421145648,1777161115771,-9999.95,0.00039206,120]
[421145649,1777161115780,-3333.31666667,0.00039206,120]
[421145650,1777161115791,-166.66583333,0.00039206,120]
[421145651,1777161115800,-150.0,0.00039211,120]
[421145652,1777161115810,-930.87207127,0.00039245,106]
[421145653,1777161115819,-419.48594627,0.00039251,2]
[421145654,1777161115830,-300.0,0.00039251,2]
[421145655,1777161115839,-300.0,0.00039251,2]
[421145656,1777161115849,-1089.91767306,0.00039251,2]
[421145657,1777161115859,-300.0,0.00039251,2]
[421145658,1777161115868,-300.0,0.00039251,2]
[421145659,1777161115878,-300.0,0.00039251,2]
[421145660,1777161115888,-300.0,0.00039251,2]
[421145661,1777161115898,-300.0,0.00039251,2]
[421145662,1777161115907,-434.17455173,0.00039251,2]
[421145663,1777161115916,-490.6092042,0.00039251,2]
[421145664,1777161115926,-300.0,0.00039251,2]
[421145665,1777161115936,-300.0,0.00039251,2]
[421145666,1777161115946,-300.0,0.00039251,2]
[421145667,1777161115955,-601.9257695,0.00039251,2]
[421145668,1777161115965,-525.51894207,0.00039251,2]
[421145669,1777161115975,-300.0,0.00039251,2]
[421145670,1777161115985,-1062.4192964,0.00039251,2]
[421145671,1777161115995,-421.67470423,0.00039251,2]
[421145672,1777161116005,-723.0136486,0.00039251,2]
[421145673,1777161116015,-416.89303449,0.00039251,2]
[421145674,1777161116024,-300.54566203,0.00039251,2]
[421145675,1777161116034,-300.0,0.00039251,2]
[421145676,1777161116043,-300.0,0.00039251,2]
[421145677,1777161116053,-300.0,0.00039251,2]
[421145678,1777161116063,-300.0,0.00039251,2]
[421145679,1777161116072,-308.28549754,0.00039251,2]
[421145680,1777161116082,-860.7605061,0.00039251,2]
[421145681,1777161116093,-309.57949226,0.00039251,2]
[421145682,1777161116102,-461.90575854,0.00039251,2]
[421145683,1777161116112,-300.0,0.00039251,2]
[421145684,1777161116122,-432.80837989,0.00039251,2]
[421145685,1777161116131,-449.9859185,0.00039251,2]
[421145686,1777161116141,-300.0,0.00039251,2]
[421145687,1777161116151,-300.0,0.00039251,2]
[421145688,1777161116160,-303.58934817,0.00039251,2]
[421145689,1777161116169,-300.0,0.00039251,2]
[421145690,1777161116179,-522.50297797,0.00039251,2]
[421145691,1777161116189,-308.53447598,0.00039251,2]
[421145692,1777161116198,-300.0,0.00039251,2]
[421145693,1777161116208,-490.57568165,0.00039251,2]
[421145694,1777161116218,-300.0,0.00039251,2]
[421145695,1777161116227,-300.0,0.00039251,2]
[421145696,1777161116237,-1089.91767306,0.00039251,2]